[Event "Lidkoping Open 2019"]
[Site "Lidkoping"]
[Date "2019.08.25"]
[Round "5.22"]
[White "Nyberg, Arne"]
[Black "Lunde, Sigmund"]
[Result "1-0"]
[ECO "C14"]
[WhiteElo "1967"]
[BlackElo "1806"]
[Annotator "NA"]
[PlyCount "55"]
[EventDate "2019.08.19"]
[EventType "swiss"]
[EventCountry "SWE"]
[SourceTitle "playchess.com"]
[Source "ChessBase"]
[SourceQuality "1"]
[TimeControl "2700+10"]

1. e4 {[%emt 0:00:00]} e6 {[%emt 0:03:37]} 2. d4 {[%emt 0:00:04]} d5 {[%emt 0:00:23]} 3. Nc3 {[%emt 0:00:08]} Nf6 {[%emt 0:01:21]} 4. Bg5 {[%emt 0:00:26]} Be7 {[%emt 0:00:16]} 5. e5 {[%emt 0:00:04]} Nfd7 {[%emt 0:01:54]} 6. Bxe7 {[%emt 0:45:18]} Qxe7 {[%emt 0:00:12]} 7. f4 {[%emt 0:00:00]} c5 {[%emt 0:00:41]} 8. Nb5 {[%emt 0:00:00]} Qd8 {[%emt 0:02:50]} 9. Nd6+ {[%emt 0:00:00]} Ke7 {[%emt 0:00:10]} 10. Qh5 {[%emt 0:00:00]} g6 {[%emt 0:00:08]} 11. Qh4+ {[%emt 0:00:00]} f6 {[%emt 0:00:03]} 12. Qh6 {[%emt 0:00:00]} Qa5+ {[%emt 0:02:08]} 13. c3 {[%emt 0:01:10]} Rf8 {[%emt 0:00:29]} 14. Qxh7+ {[%emt 0:00:00]} Kd8 {[%emt 0:00:04]} 15. Nf3 {[%emt 0:00:00]} Nc6 {[%emt 0:00:20]} 16. Bb5 {[%emt 0:00:00]} a6 {[%emt 0:07:32]} 17. Bxc6 {[%emt 0:00:00]} bxc6 {[%emt 0:00:01]} 18. O-O {[%emt 0:00:00]} Kc7 {[%emt 0:02:59]} 19. Qxg6 {[%emt 0:00:00]} Rb8 {[%emt 0:01:23]} 20. Qc2 {[%emt 0:00:00]} Qb6 {[%emt 0:04:19]} 21. b3 {[%emt 0:00:00]} Qa5 {[%emt 0:00:33]} 22. Kh1 {[%emt 0:00:00]} Rb6 {[%emt 0:02:13]} 23. c4 {[%emt 0:00:00]} Rh8 {[%emt 0:06:38]} 24. cxd5 {[%emt 0:00:00]} fxe5 {[%emt 0:01:09]} 25. Nc4 {[%emt 0:00:00]} Qb4 {[%emt 0:00:22]} 26. Nxb6 {[%emt 0:00:00]} Qxb6 {[%emt 0:00:13]} 27. dxe6 {[%emt 0:00:00]} Nb8 {[%emt 0:00:31]} 28. Qxc5 {[%emt 0:00:00]} 1-0

[Event "Lidkoping Open 2019"]
[Site "Lidkoping"]
[Date "2019.08.25"]
[Round "6.1"]
[White "Blomqvist, Erik"]
[Black "Ernst, Thomas"]
[Result "0-1"]
[ECO "C77"]
[WhiteElo "2507"]
[BlackElo "2329"]
[Annotator "ChessBase"]
[PlyCount "116"]
[EventDate "2019.08.19"]
[EventType "swiss"]
[EventCountry "SWE"]
[SourceTitle "playchess.com"]
[Source "ChessBase"]
[SourceQuality "1"]
[TimeControl "2700+10"]

1. e4 {[%emt 0:00:00]} e5 {[%emt 0:00:00]} 2. Nf3 {[%emt 0:00:00]} Nc6 {[%emt 0:00:00]} 3. Bb5 {[%emt 0:00:03]} a6 {[%emt 0:00:00]} 4. Ba4 {[%emt 0:00:02]} Nf6 {[%emt 0:00:04]} 5. d3 {[%emt 0:00:03]} Bc5 {[%emt 0:00:29]} 6. c3 {[%emt 0:00:07]} b5 {[%emt 0:00:44]} 7. Bc2 {[%emt 0:01:43]} d5 {[%emt 0:01:09]} 8. Qe2 {[%emt 0:02:41]} dxe4 {[%emt 0:01:53]} 9. dxe4 {[%emt 0:00:02]} Be6 {[%emt 0:00:12]} 10. Nbd2 {[%emt 0:01:56]} Bd6 {[%emt 0:02:43]} 11. O-O {[%emt 0:04:20]} O-O {[%emt 0:00:27]} 12. a4 {[%emt 0:01:23]} b4 {[%emt 0:01:55]} 13. a5 {[%emt 0:00:04]} Bc8 {[%emt 0:00:54]} 14. Nc4 {[%emt 0:00:39]} Qe7 {[%emt 0:03:26]} 15. h3 {[%emt 0:00:59]} Nd7 {[%emt 0:01:12]} 16. Be3 {[%emt 0:06:08]} Nc5 {[%emt 0:01:40]} 17. Nxd6 {[%emt 0:00:14]} cxd6 {[%emt 0:00:09]} 18. Nd2 {[%emt 0:03:29]} Rb8 {[%emt 0:05:03]} 19. Nc4 {[%emt 0:00:43]} Rb5 {[%emt 0:00:35]} 20. Rfd1 {[%emt 0:04:06]} Rd8 {[%emt 0:00:38]} 21. Rd5 {[%emt 0:05:07]} b3 {[%emt 0:05:32]} 22. Bxc5 {[%emt 0:03:21]} dxc5 {[%emt 0:01:06]} 23. Bd3 {[%emt 0:00:13]} Be6 {[%emt 0:02:25]} 24. Rxd8+ {[%emt 0:00:03]} Qxd8 {[%emt 0:00:03]} 25. Nxe5 {[%emt 0:03:19]} Rxa5 {[%emt 0:00:08]} 26. Rxa5 {[%emt 0:00:12]} Nxa5 {[%emt 0:00:02]} 27. Bxa6 {[%emt 0:00:06]} Qg5 {[%emt 0:01:59]} 28. Ng4 {[%emt 0:02:45]} Qc1+ {[%emt 0:05:13]} 29. Kh2 {[%emt 0:00:02]} Qf4+ {[%emt 0:00:45]} 30. g3 {[%emt 0:00:49]} Qc7 {[%emt 0:00:14]} 31. Ne3 {[%emt 0:01:12]} c4 {[%emt 0:00:17]} 32. Qh5 {[%emt 0:02:36]} Qb6 {[%emt 0:00:45]} 33. Qb5 {[%emt 0:00:29]} Qxb5 {[%emt 0:00:04]} 34. Bxb5 {[%emt 0:00:01]} Kf8 {[%emt 0:00:05]} 35. f4 {[%emt 0:00:06]} f6 {[%emt 0:00:08]} 36. g4 {[%emt 0:01:12]} Ke7 {[%emt 0:00:19]} 37. Kg3 {[%emt 0:00:08]} Kd6 {[%emt 0:00:10]} 38. Kf3 {[%emt 0:00:29]} Kc5 {[%emt 0:00:27]} 39. Be8 {[%emt 0:00:01]} Nb7 {[%emt 0:00:18]} 40. e5 {[%emt 0:00:18]} fxe5 {[%emt 0:03:54]} 41. fxe5 {[%emt 0:00:01]} Nd8 {[%emt 0:00:01]} 42. Ke4 {[%emt 0:00:08]} Bc8 {[%emt 0:00:07]} 43. Nf5 {[%emt 0:00:29]} Ne6 {[%emt 0:00:19]} 44. Nd6 {[%emt 0:00:19]} Ng5+ {[%emt 0:00:16]} 45. Ke3 {[%emt 0:00:07]} Be6 {[%emt 0:00:18]} 46. h4 {[%emt 0:00:04]} Nh3 {[%emt 0:00:04]} 47. Bf7 {[%emt 0:00:12]} Bxf7 {[%emt 0:00:05]} 48. Nxf7 {[%emt 0:00:01]} Kd5 {[%emt 0:00:02]} 49. Nd6 {[%emt 0:00:22]} g5 {[%emt 0:00:07]} 50. Nxc4 {[%emt 0:00:14]} Kxc4 {[%emt 0:00:48]} 51. e6 {[%emt 0:00:10]} Nf4 {[%emt 0:00:02]} 52. e7 {[%emt 0:00:10]} Nd5+ {[%emt 0:00:02]} 53. Ke4 {[%emt 0:00:01]} Nxe7 {[%emt 0:00:02]} 54. hxg5 {[%emt 0:00:15]} Nd5 {[%emt 0:00:51]} 55. Ke5 {[%emt 0:00:15]} Nxc3 {[%emt 0:00:04]} 56. Kf6 {[%emt 0:00:08]} Ne4+ {[%emt 0:00:12]} 57. Kg7 {[%emt 0:00:07]} Nxg5 {[%emt 0:00:04]} 58. Kh6 {[%emt 0:00:00]} Nf3 {[%emt 0:00:27]} 0-1

[Event "Lidkoping Open 2019"]
[Site "Lidkoping"]
[Date "2019.08.25"]
[Round "6.2"]
[White "Nordlund, Jim"]
[Black "Bellon Lopez, Juan Manuel"]
[Result "0-1"]
[ECO "B21"]
[WhiteElo "2130"]
[BlackElo "2335"]
[Annotator "ChessBase"]
[PlyCount "86"]
[EventDate "2019.08.19"]
[EventType "swiss"]
[EventCountry "SWE"]
[SourceTitle "playchess.com"]
[Source "ChessBase"]
[SourceQuality "1"]
[TimeControl "2700+10"]

1. e4 {[%emt 0:00:00]} c5 {[%emt 0:00:00]} 2. d3 {[%emt 0:00:00]} g6 {[%emt 0:00:00]} 3. Be2 {[%emt 0:00:11]} Bg7 {[%emt 0:00:00]} 4. f4 {[%emt 0:00:05]} Nc6 {[%emt 0:00:00]} 5. Nf3 {[%emt 0:00:08]} d6 {[%emt 0:00:01]} 6. O-O {[%emt 0:00:10]} e6 {[%emt 0:00:37]} 7. c3 {[%emt 0:00:26]} Nge7 {[%emt 0:00:02]} 8. Be3 {[%emt 0:00:13]} O-O {[%emt 0:00:08]} 9. d4 {[%emt 0:00:14]} cxd4 {[%emt 0:00:06]} 10. cxd4 {[%emt 0:00:05]} d5 {[%emt 0:00:49]} 11. e5 {[%emt 0:00:23]} f6 {[%emt 0:00:25]} 12. Na3 {[%emt 0:02:30]} Nf5 {[%emt 0:00:11]} 13. Bf2 {[%emt 0:00:20]} fxe5 {[%emt 0:02:01]} 14. fxe5 {[%emt 0:00:48]} Qb6 {[%emt 0:00:24]} 15. b3 {[%emt 0:04:07]} Bd7 {[%emt 0:00:38]} 16. g4 {[%emt 0:01:18]} Nfe7 {[%emt 0:02:59]} 17. Qd2 {[%emt 0:00:35]} Qb4 {[%emt 0:00:54]} 18. Qb2 {[%emt 0:06:02]} Bh6 {[%emt 0:02:00]} 19. Kg2 {[%emt 0:03:23]} Bf4 {[%emt 0:00:59]} 20. Nb5 {[%emt 0:01:19]} Nc8 {[%emt 0:02:48]} 21. Be1 {[%emt 0:04:28]} Qe7 {[%emt 0:00:07]} 22. h4 {[%emt 0:00:22]} a6 {[%emt 0:00:12]} 23. Nc3 {[%emt 0:01:11]} b5 {[%emt 0:02:09]} 24. Bg3 {[%emt 0:02:17]} Be3 {[%emt 0:04:15]} 25. Nd1 {[%emt 0:01:31]} Rxf3 {[%emt 0:00:23]} 26. Bxf3 {[%emt 0:00:03]} Bxd4 {[%emt 0:00:02]} 27. Qc1 {[%emt 0:00:09]} Bxa1 {[%emt 0:03:12]} 28. Qxa1 {[%emt 0:00:05]} Qg7 {[%emt 0:01:18]} 29. Nf2 {[%emt 0:00:46]} h6 {[%emt 0:01:12]} 30. Nd3 {[%emt 0:01:30]} Nb6 {[%emt 0:04:19]} 31. Qb2 {[%emt 0:04:27]} Rf8 {[%emt 0:01:56]} 32. Qf2 {[%emt 0:02:23]} d4 {[%emt 0:01:34]} 33. Qe2 {[%emt 0:01:27]} Ne7 {[%emt 0:01:03]} 34. Rc1 {[%emt 0:01:32]} Nbd5 {[%emt 0:00:45]} 35. Kh3 {[%emt 0:00:56]} Nc3 {[%emt 0:01:52]} 36. Qf2 {[%emt 0:03:22]} Ned5 {[%emt 0:03:47]} 37. Qxd4 {[%emt 0:00:07]} Rxf3 {[%emt 0:00:12]} 38. Rxc3 {[%emt 0:00:02]} Nxc3 {[%emt 0:00:15]} 39. Qxc3 {[%emt 0:00:03]} Qf7 {[%emt 0:00:39]} 40. Qd4 {[%emt 0:00:23]} g5 {[%emt 0:01:07]} 41. h5 {[%emt 0:00:11]} Bc6 {[%emt 0:00:24]} 42. Nf2 {[%emt 0:00:28]} Bd5 {[%emt 0:00:35]} 43. Ne4 {[%emt 0:01:02]} Qf4 {[%emt 0:01:35]} 0-1

[Event "Lidkoping Open 2019"]
[Site "Lidkoping"]
[Date "2019.08.25"]
[Round "6.3"]
[White "Svensson, Bengt"]
[Black "Ronneland, Daniel"]
[Result "1-0"]
[ECO "B33"]
[WhiteElo "2310"]
[BlackElo "2137"]
[Annotator "ChessBase"]
[PlyCount "65"]
[EventDate "2019.08.19"]
[EventType "swiss"]
[EventCountry "SWE"]
[SourceTitle "playchess.com"]
[Source "ChessBase"]
[SourceQuality "1"]
[TimeControl "2700+10"]

1. e4 {[%emt 0:00:00]} c5 {[%emt 0:00:35]} 2. Nf3 {[%emt 0:00:00]} Nc6 {[%emt 0:00:05]} 3. d4 {[%emt 0:00:07]} cxd4 {[%emt 0:00:06]} 4. Nxd4 {[%emt 0:00:03]} Nf6 {[%emt 0:00:21]} 5. Nc3 {[%emt 0:00:03]} e5 {[%emt 0:00:05]} 6. Ndb5 {[%emt 0:00:10]} d6 {[%emt 0:00:06]} 7. Bg5 {[%emt 0:00:53]} a6 {[%emt 0:00:05]} 8. Na3 {[%emt 0:00:02]} b5 {[%emt 0:00:10]} 9. Bxf6 {[%emt 0:00:48]} gxf6 {[%emt 0:00:07]} 10. Nd5 {[%emt 0:00:01]} Bg7 {[%emt 0:00:43]} 11. c3 {[%emt 0:01:49]} f5 {[%emt 0:01:53]} 12. Bd3 {[%emt 0:05:24]} Be6 {[%emt 0:05:37]} 13. Qh5 {[%emt 0:03:27]} Rb8 {[%emt 0:09:14]} 14. Nc2 {[%emt 0:02:58]} f4 {[%emt 0:11:15]} 15. g3 {[%emt 0:06:41]} Bxd5 {[%emt 0:00:43]} 16. exd5 {[%emt 0:00:04]} Ne7 {[%emt 0:00:27]} 17. Be4 {[%emt 0:01:26]} Ng6 {[%emt 0:01:09]} 18. Nb4 {[%emt 0:02:33]} Qb6 {[%emt 0:05:17]} 19. Nc6 {[%emt 0:06:19]} Rb7 {[%emt 0:00:03]} 20. b4 {[%emt 0:00:09]} O-O {[%emt 0:00:49]} 21. O-O {[%emt 0:00:21]} f5 {[%emt 0:04:18]} 22. Bxf5 {[%emt 0:00:21]} Rf6 {[%emt 0:00:53]} 23. g4 {[%emt 0:08:08]} f3 {[%emt 0:01:39]} 24. Qh3 {[%emt 0:01:04]} e4 {[%emt 0:00:46]} 25. Bxe4 {[%emt 0:01:21]} Rf4 {[%emt 0:01:46]} 26. Bxg6 {[%emt 0:00:56]} hxg6 {[%emt 0:00:03]} 27. Rae1 {[%emt 0:00:02]} Bxc3 {[%emt 0:00:58]} 28. Re8+ {[%emt 0:01:11]} Kf7 {[%emt 0:00:05]} 29. Re6 {[%emt 0:00:28]} Bg7 {[%emt 0:00:13]} 30. Rfe1 {[%emt 0:00:23]} Rf6 {[%emt 0:00:17]} 31. Rxf6+ {[%emt 0:00:44]} Bxf6 {[%emt 0:00:08]} 32. Qh7+ {[%emt 0:00:27]} Bg7 {[%emt 0:00:05]} 33. Re6 {[%emt 0:00:06]} 1-0

[Event "Lidkoping Open 2019"]
[Site "Lidkoping"]
[Date "2019.08.25"]
[Round "6.4"]
[White "Nygren, Kim"]
[Black "Mattsson, Michael"]
[Result "1-0"]
[ECO "C88"]
[WhiteElo "2171"]
[BlackElo "2011"]
[Annotator "ChessBase"]
[PlyCount "71"]
[EventDate "2019.08.19"]
[EventType "swiss"]
[EventCountry "SWE"]
[SourceTitle "playchess.com"]
[Source "ChessBase"]
[SourceQuality "1"]
[TimeControl "2700+10"]

1. e4 {[%emt 0:02:51]} e5 {[%emt 0:00:00]} 2. Nf3 {[%emt 0:00:03]} Nc6 {[%emt 0:00:00]} 3. Bb5 {[%emt 0:00:02]} a6 {[%emt 0:00:00]} 4. Ba4 {[%emt 0:00:02]} Nf6 {[%emt 0:00:00]} 5. O-O {[%emt 0:00:05]} b5 {[%emt 0:00:09]} 6. Bb3 {[%emt 0:00:02]} Be7 {[%emt 0:00:01]} 7. Re1 {[%emt 0:00:03]} O-O {[%emt 0:00:03]} 8. a4 {[%emt 0:00:46]} b4 {[%emt 0:00:01]} 9. d3 {[%emt 0:00:17]} d6 {[%emt 0:00:09]} 10. h3 {[%emt 0:00:04]} Na5 {[%emt 0:00:13]} 11. Nbd2 {[%emt 0:00:16]} Nxb3 {[%emt 0:03:21]} 12. Nxb3 {[%emt 0:01:15]} c5 {[%emt 0:02:27]} 13. Nh2 {[%emt 0:00:50]} Be6 {[%emt 0:02:29]} 14. f4 {[%emt 0:03:13]} Bxb3 {[%emt 0:03:08]} 15. cxb3 {[%emt 0:00:14]} Kh8 {[%emt 0:04:31]} 16. Qf3 {[%emt 0:03:23]} Nd7 {[%emt 0:01:44]} 17. f5 {[%emt 0:01:16]} Bg5 {[%emt 0:00:18]} 18. Be3 {[%emt 0:00:21]} Bxe3+ {[%emt 0:00:24]} 19. Rxe3 {[%emt 0:00:03]} f6 {[%emt 0:01:33]} 20. Kh1 {[%emt 0:02:25]} Nb8 {[%emt 0:00:07]} 21. g4 {[%emt 0:00:16]} Nc6 {[%emt 0:00:02]} 22. Rg1 {[%emt 0:00:19]} Qe7 {[%emt 0:04:57]} 23. Qf2 {[%emt 0:02:14]} g5 {[%emt 0:01:12]} 24. fxg6 {[%emt 0:00:41]} hxg6 {[%emt 0:00:03]} 25. h4 {[%emt 0:00:56]} Ra7 {[%emt 0:02:45]} 26. Rh3 {[%emt 0:00:15]} Qe6 {[%emt 0:00:20]} 27. Qe3 {[%emt 0:02:56]} Rh7 {[%emt 0:00:38]} 28. g5 {[%emt 0:01:25]} f5 {[%emt 0:05:37]} 29. exf5 {[%emt 0:00:04]} gxf5 {[%emt 0:00:50]} 30. g6 {[%emt 0:00:23]} f4 {[%emt 0:00:37]} 31. Qf3 {[%emt 0:01:05]} Nd4 {[%emt 0:00:14]} 32. Qg2 {[%emt 0:00:02]} Rg7 {[%emt 0:02:36]} 33. h5 {[%emt 0:00:03]} Rfg8 {[%emt 0:00:52]} 34. Qg5 {[%emt 0:01:41]} Rh7 {[%emt 0:04:51]} 35. h6 {[%emt 0:02:16]} Qxh3 {[%emt 0:00:23]} 36. g7+ {[%emt 0:00:33]} 1-0

[Event "Lidkoping Open 2019"]
[Site "Lidkoping"]
[Date "2019.08.25"]
[Round "6.5"]
[White "Nordstrom, Felix"]
[Black "Andersson, Fredrik"]
[Result "0-1"]
[ECO "E93"]
[WhiteElo "2060"]
[BlackElo "2264"]
[Annotator "ChessBase"]
[PlyCount "80"]
[EventDate "2019.08.19"]
[EventType "swiss"]
[EventCountry "SWE"]
[SourceTitle "playchess.com"]
[Source "ChessBase"]
[SourceQuality "1"]
[TimeControl "2700+10"]

1. d4 {[%emt 0:00:09]} Nf6 {[%emt 0:00:00]} 2. c4 {[%emt 0:00:05]} g6 {[%emt 0:00:00]} 3. Nc3 {[%emt 0:00:02]} Bg7 {[%emt 0:00:00]} 4. e4 {[%emt 0:00:02]} d6 {[%emt 0:00:00]} 5. Nf3 {[%emt 0:01:10]} O-O {[%emt 0:00:02]} 6. Be2 {[%emt 0:00:09]} e5 {[%emt 0:00:10]} 7. Be3 {[%emt 0:00:42]} Ng4 {[%emt 0:00:39]} 8. Bg5 {[%emt 0:00:12]} f6 {[%emt 0:00:09]} 9. Bh4 {[%emt 0:00:08]} g5 {[%emt 0:00:30]} 10. Bg3 {[%emt 0:00:10]} Nh6 {[%emt 0:00:45]} 11. d5 {[%emt 0:01:50]} Nd7 {[%emt 0:00:42]} 12. Nd2 {[%emt 0:01:40]} f5 {[%emt 0:01:51]} 13. f3 {[%emt 0:02:11]} Nf6 {[%emt 0:02:09]} 14. exf5 {[%emt 0:02:04]} Nxf5 {[%emt 0:00:23]} 15. Bf2 {[%emt 0:00:51]} Nd4 {[%emt 0:07:28]} 16. Nde4 {[%emt 0:02:02]} Nxe4 {[%emt 0:01:54]} 17. Nxe4 {[%emt 0:01:27]} Bf5 {[%emt 0:01:10]} 18. Bd3 {[%emt 0:02:16]} Qe8 {[%emt 0:05:48]} 19. Ng3 {[%emt 0:03:33]} Bg6 {[%emt 0:02:28]} 20. O-O {[%emt 0:01:37]} h5 {[%emt 0:01:14]} 21. Be3 {[%emt 0:09:28]} g4 {[%emt 0:05:14]} 22. fxg4 {[%emt 0:01:56]} Rxf1+ {[%emt 0:00:38]} 23. Nxf1 {[%emt 0:02:25]} hxg4 {[%emt 0:00:22]} 24. Be2 {[%emt 0:01:30]} Nxe2+ {[%emt 0:01:33]} 25. Qxe2 {[%emt 0:00:02]} Qd7 {[%emt 0:00:04]} 26. Ng3 {[%emt 0:01:34]} Re8 {[%emt 0:01:37]} 27. b3 {[%emt 0:02:50]} a6 {[%emt 0:00:07]} 28. Rd1 {[%emt 0:00:44]} b6 {[%emt 0:01:39]} 29. Nf1 {[%emt 0:00:04]} Qf5 {[%emt 0:01:15]} 30. Bf2 {[%emt 0:00:26]} Qg5 {[%emt 0:01:10]} 31. Qd2 {[%emt 0:02:26]} Qf4 {[%emt 0:01:50]} 32. Be3 {[%emt 0:00:23]} Qf7 {[%emt 0:00:22]} 33. Qe2 {[%emt 0:00:13]} Bf5 {[%emt 0:00:11]} 34. Ng3 {[%emt 0:00:09]} Bd7 {[%emt 0:00:04]} 35. c5 {[%emt 0:01:25]} bxc5 {[%emt 0:01:13]} 36. Qxa6 {[%emt 0:00:01]} Qg6 {[%emt 0:00:04]} 37. Qc4 {[%emt 0:01:05]} Rb8 {[%emt 0:00:37]} 38. a3 {[%emt 0:00:28]} Bb5 {[%emt 0:01:29]} 39. Qc1 {[%emt 0:00:16]} Bd3 {[%emt 0:00:16]} 40. b4 {[%emt 0:01:31]} c4 {[%emt 0:04:33]} 0-1

[Event "Lidkoping Open 2019"]
[Site "Lidkoping"]
[Date "2019.08.25"]
[Round "6.6"]
[White "Carlstrom, Niklas"]
[Black "Madebrink, Lars"]
[Result "1-0"]
[ECO "B01"]
[WhiteElo "2095"]
[BlackElo "2147"]
[Annotator "NA"]
[PlyCount "59"]
[EventDate "2019.08.19"]
[EventType "swiss"]
[EventCountry "SWE"]
[SourceTitle "playchess.com"]
[Source "ChessBase"]
[SourceQuality "1"]
[TimeControl "2700+10"]

1. e4 {[%emt 0:00:06]} e6 {[%emt 0:00:00]} 2. d4 {[%emt 0:00:08]} d5 {[%emt 0:00:00]} 3. exd5 {[%emt 0:01:28]} Qxd5 {[%emt 0:00:04]} 4. Nf3 {[%emt 0:00:41]} Nf6 {[%emt 0:00:13]} 5. Be2 {[%emt 0:00:35]} Be7 {[%emt 0:00:16]} 6. O-O {[%emt 0:00:21]} O-O {[%emt 0:00:04]} 7. c4 {[%emt 0:00:37]} Qd8 {[%emt 0:00:08]} 8. Nc3 {[%emt 0:00:32]} c5 {[%emt 0:01:54]} 9. d5 {[%emt 0:01:34]} exd5 {[%emt 0:03:07]} 10. cxd5 {[%emt 0:00:04]} a6 {[%emt 0:00:17]} 11. a4 {[%emt 0:00:28]} h6 {[%emt 0:01:06]} 12. Bf4 {[%emt 0:03:18]} Bd6 {[%emt 0:00:16]} 13. Bxd6 {[%emt 0:00:43]} Qxd6 {[%emt 0:00:02]} 14. a5 {[%emt 0:01:20]} Bf5 {[%emt 0:06:56]} 15. Qb3 {[%emt 0:01:16]} Qc7 {[%emt 0:01:42]} 16. Nd2 {[%emt 0:02:50]} Nbd7 {[%emt 0:00:29]} 17. Nc4 {[%emt 0:00:19]} Bg4 {[%emt 0:03:41]} 18. d6 {[%emt 0:07:20]} Qc6 {[%emt 0:00:16]} 19. Bxg4 {[%emt 0:00:42]} Nxg4 {[%emt 0:00:02]} 20. Rad1 {[%emt 0:00:23]} Ngf6 {[%emt 0:02:03]} 21. Ne3 {[%emt 0:03:34]} Rad8 {[%emt 0:03:07]} 22. Nf5 {[%emt 0:01:07]} c4 {[%emt 0:02:58]} 23. Ne7+ {[%emt 0:00:42]} Kh8 {[%emt 0:00:01]} 24. Nxc6 {[%emt 0:00:09]} cxb3 {[%emt 0:00:02]} 25. Nxd8 {[%emt 0:00:12]} Rxd8 {[%emt 0:00:02]} 26. Rfe1 {[%emt 0:00:25]} Kg8 {[%emt 0:00:27]} 27. Nd5 {[%emt 0:02:26]} Ne8 {[%emt 0:00:09]} 28. Re3 {[%emt 0:00:17]} Nc5 {[%emt 0:00:34]} 29. Rc3 {[%emt 0:01:38]} Ne4 {[%emt 0:00:07]} 30. Rc8 {[%emt 0:00:39]} 1-0

[Event "Lidkoping Open 2019"]
[Site "Lidkoping"]
[Date "2019.08.25"]
[Round "6.7"]
[White "Ask, Josef"]
[Black "Johnson, Daniel"]
[Result "0-1"]
[ECO "A08"]
[WhiteElo "2136"]
[BlackElo "2201"]
[Annotator "ChessBase"]
[PlyCount "83"]
[EventDate "2019.08.19"]
[EventType "swiss"]
[EventCountry "SWE"]
[SourceTitle "playchess.com"]
[Source "ChessBase"]
[SourceQuality "1"]
[TimeControl "2700+10"]

1. e4 {[%emt 0:00:22]} c5 {[%emt 0:00:05]} 2. d3 {[%emt 0:00:09]} g6 {[%emt 0:02:59]} 3. g3 {[%emt 0:00:14]} Bg7 {[%emt 0:00:18]} 4. Bg2 {[%emt 0:00:07]} Nc6 {[%emt 0:00:23]} 5. Nf3 {[%emt 0:00:19]} e6 {[%emt 0:01:17]} 6. O-O {[%emt 0:00:16]} Nge7 {[%emt 0:00:39]} 7. Re1 {[%emt 0:00:13]} d5 {[%emt 0:01:21]} 8. Nbd2 {[%emt 0:00:48]} O-O {[%emt 0:00:58]} 9. c3 {[%emt 0:01:49]} b5 {[%emt 0:05:58]} 10. a3 {[%emt 0:02:09]} Qb6 {[%emt 0:02:00]} 11. Nb3 {[%emt 0:01:35]} a5 {[%emt 0:07:01]} 12. Be3 {[%emt 0:00:56]} d4 {[%emt 0:00:38]} 13. cxd4 {[%emt 0:00:11]} cxd4 {[%emt 0:00:20]} 14. Bd2 {[%emt 0:01:56]} a4 {[%emt 0:01:01]} 15. Nc1 {[%emt 0:00:05]} e5 {[%emt 0:00:56]} 16. Rf1 {[%emt 0:00:56]} f6 {[%emt 0:03:34]} 17. Nh4 {[%emt 0:00:33]} Be6 {[%emt 0:02:16]} 18. f4 {[%emt 0:00:22]} Bf7 {[%emt 0:02:15]} 19. Nf3 {[%emt 0:01:47]} h6 {[%emt 0:02:42]} 20. h4 {[%emt 0:01:49]} Rac8 {[%emt 0:04:39]} 21. Bh3 {[%emt 0:00:18]} Rc7 {[%emt 0:00:01]} 22. Qe1 {[%emt 0:00:18]} Rb7 {[%emt 0:03:19]} 23. Kh1 {[%emt 0:01:06]} Re8 {[%emt 0:00:30]} 24. Qf2 {[%emt 0:00:10]} Rf8 {[%emt 0:00:58]} 25. Nh2 {[%emt 0:00:19]} Kh7 {[%emt 0:01:09]} 26. Ng4 {[%emt 0:00:34]} Be8 {[%emt 0:00:50]} 27. Qg2 {[%emt 0:00:47]} Bd7 {[%emt 0:01:10]} 28. Na2 {[%emt 0:00:47]} Qd8 {[%emt 0:00:09]} 29. Nb4 {[%emt 0:00:49]} Qc8 {[%emt 0:00:12]} 30. Nf2 {[%emt 0:00:57]} Bxh3 {[%emt 0:00:07]} 31. Nxh3 {[%emt 0:00:01]} Kg8 {[%emt 0:00:14]} 32. Rac1 {[%emt 0:00:46]} Qd7 {[%emt 0:00:10]} 33. Kh2 {[%emt 0:01:23]} Nxb4 {[%emt 0:00:02]} 34. Bxb4 {[%emt 0:00:01]} Rc8 {[%emt 0:00:17]} 35. Rxc8+ {[%emt 0:01:06]} Qxc8 {[%emt 0:00:03]} 36. Qf3 {[%emt 0:00:52]} Nc6 {[%emt 0:00:16]} 37. Bd2 {[%emt 0:00:09]} Qd7 {[%emt 0:00:12]} 38. Nf2 {[%emt 0:00:35]} Rb8 {[%emt 0:00:03]} 39. Ng4 {[%emt 0:00:23]} Rf8 {[%emt 0:00:09]} 40. Rc1 {[%emt 0:00:57]} g5 {[%emt 0:00:08]} 41. hxg5 {[%emt 0:00:28]} hxg5 {[%emt 0:00:05]} 42. f5 {[%emt 0:22:38]} 0-1

[Event "Lidkoping Open 2019"]
[Site "Lidkoping"]
[Date "2019.08.25"]
[Round "6.8"]
[White "Johansson, Stefan"]
[Black "Friberg, Hans"]
[Result "0-1"]
[ECO "A23"]
[WhiteElo "2016"]
[BlackElo "2129"]
[Annotator "NA"]
[PlyCount "40"]
[EventDate "2019.08.19"]
[EventType "swiss"]
[EventCountry "SWE"]
[SourceTitle "playchess.com"]
[Source "ChessBase"]
[SourceQuality "1"]
[TimeControl "2700+10"]

1. c4 {[%emt 0:00:00]} e5 {[%emt 0:00:27]} 2. Nc3 {[%emt 0:00:02]} Nf6 {[%emt 0:02:57]} 3. g3 {[%emt 0:00:24]} c6 {[%emt 0:00:42]} 4. d4 {[%emt 0:02:44]} exd4 {[%emt 0:00:41]} 5. Qxd4 {[%emt 0:00:10]} d5 {[%emt 0:00:16]} 6. Bg5 {[%emt 0:04:55]} Be7 {[%emt 0:04:19]} 7. cxd5 {[%emt 0:00:41]} cxd5 {[%emt 0:00:07]} 8. Bg2 {[%emt 0:02:42]} Nc6 {[%emt 0:00:20]} 9. Qd2 {[%emt 0:00:55]} d4 {[%emt 0:05:01]} 10. Bxf6 {[%emt 0:05:01]} Bxf6 {[%emt 0:00:35]} 11. Ne4 {[%emt 0:00:14]} Be7 {[%emt 0:00:32]} 12. Qc2 {[%emt 0:07:31]} Nb4 {[%emt 0:10:48]} 13. Qa4+ {[%emt 0:02:51]} Bd7 {[%emt 0:01:21]} 14. Qb3 {[%emt 0:00:00]} Rc8 {[%emt 0:06:50]} 15. Rd1 {[%emt 0:01:50]} a5 {[%emt 0:01:00]} 16. Kf1 {[%emt 0:03:07]} a4 {[%emt 0:00:27]} 17. Qf3 {[%emt 0:00:02]} Nxa2 {[%emt 0:02:03]} 18. Bh3 {[%emt 0:00:24]} O-O {[%emt 0:01:14]} 19. Kg2 {[%emt 0:00:33]} f5 {[%emt 0:00:57]} 20. Qh5 {[%emt 0:01:43]} g6 {[%emt 0:01:26]} 0-1